bitfinex-derivatives/quotes_SOLF0:USTF0_20250114
["timestamp","ask_amount","ask_price","bid_price","bid_amount"]
[1736881326221,195.0,186.54,186.41,12.45352119]
[1736881326420,160.58858107,186.55,186.44,12.45352119]
[1736881326626,148.13505988,186.55,186.47,12.45352119]
[1736881326917,148.13505988,186.55,186.5,12.45352119]
[1736881327130,8.2411,186.6,186.54,2.6818]
[1736881327325,5.56,186.6,186.5,12.45352119]
[1736881327825,12.45352119,186.58,186.47,14.91352119]
[1736881328242,5.56,186.6,186.47,2.46]
[1736881328423,2.6817,186.55,186.5,2.6824]
[1736881328685,12.45352119,186.57,186.47,2.46]
[1736881328815,1.5978,186.56,186.47,2.46]
[1736881329222,1.5978,186.56,186.47,2.20925]
[1736881329420,2.6818,186.54,186.49,2.6825]
[1736881329727,2.6818,186.54,186.47,2.20925]
[1736881329728,5.6,186.53,186.47,2.20925]
[1736881330227,5.6,186.53,186.48,2.6825]
[1736881330616,5.6,186.53,186.47,2.20925]
[1736881332127,8.282,186.53,186.49,2.6825]
[1736881332726,148.13505988,186.72,186.47,14.66277119]
[1736881332925,12.45352119,186.59,186.47,14.66277119]
[1736881333130,5.6,186.59,186.5,12.45352119]
[1736881333429,5.6,186.59,186.55,2.6816]
[1736881335634,5.6,186.59,186.56,2.6815]
[1736881337829,5.6,186.59,186.58,2.6812]
[1736881338023,5.6,186.62,186.53,12.45352119]
[1736881338733,13.3654801,186.65,186.53,12.45352119]
[1736881338734,5.6,186.64,186.53,12.45352119]
[1736881338935,5.6,186.64,186.6,2.6808]
[1736881339138,8.2805,186.64,186.6,2.6808]
[1736881339435,8.2605,186.64,186.6,2.6808]
[1736881341054,2.6805,186.63,186.6,2.6808]
[1736881342625,5.58,186.64,186.53,12.45352119]
[1736881342825,5.58,186.64,186.5,1.593]
[1736881343032,12.45352119,186.62,186.5,1.593]
[1736881343233,2.681,186.6,186.56,2.6814]
[1736881343433,2.681,186.6,186.5,1.593]
[1736881343434,12.45352119,186.62,186.51,12.45352119]
[1736881344137,2.6809,186.6,186.51,12.45352119]
[1736881345037,2.6809,186.6,186.56,2.6814]
[1736881345238,2.6809,186.6,186.51,12.45352119]
[1736881345433,2.6811,186.59,186.55,2.6815]
[1736881345827,12.45352119,186.62,186.51,12.45352119]
[1736881346033,2.6808,186.61,186.57,2.6813]
[1736881346935,12.45352119,186.62,186.49,1.6594]
[1736881347138,3.2557,186.63,186.45,12.45352119]
[1736881347139,12.45352119,186.59,186.45,12.45352119]
[1736881347941,12.45352119,186.59,186.51,2.6821]
[1736881349342,12.45352119,186.59,186.45,12.45352119]
[1736881350140,12.45352119,186.56,186.45,12.45352119]
[1736881350339,10.3831,186.55,186.45,12.45352119]
[1736881351143,10.3831,186.55,186.48,2.6826]
[1736881351740,2.6822,186.52,186.48,2.6826]
[1736881351940,12.45352119,186.53,186.42,12.45352119]
[1736881352337,12.45352119,186.5,186.39,12.45352119]
[1736881352542,12.45352119,186.47,186.36,15.79552119]
[1736881352747,5.58,186.46,186.36,15.79552119]
[1736881352944,2.6834,186.43,186.36,15.79552119]
[1736881353144,2.6834,186.43,186.39,2.6838]
[1736881353537,2.6834,186.43,186.39,4.8938]
[1736881354345,2.6833,186.44,186.4,2.6838]
[1736881354942,2.6833,186.44,186.39,2.21]
[1736881355139,2.6834,186.43,186.39,4.8939]
[1736881355547,8.9311,186.46,186.4,2.6838]
[1736881356047,8.9311,186.46,186.39,2.21]
[1736881356347,8.9311,186.46,186.39,4.8939]
[1736881357248,2.6833,186.44,186.39,4.8939]
[1736881357849,2.6834,186.43,186.39,4.8939]
[1736881358242,8.9311,186.46,186.39,2.21]
[1736881358243,12.45352119,186.44,186.39,2.21]
[1736881360148,2.6834,186.43,186.39,4.8939]
[1736881361547,2.6838,186.4,186.39,2.21]
[1736881361949,12.45352119,186.41,186.3,12.45352119]
[1736881362246,2.6843,186.37,186.33,2.6848]
[1736881362440,5.56,186.37,186.33,2.6848]
[1736881362645,2.6846,186.35,186.31,2.685]
[1736881362847,2.6846,186.35,186.27,144.74059616]
[1736881362848,5.56,186.37,186.27,144.74059616]
[1736881363050,5.56,186.37,186.27,115.12383702]
[1736881363446,2.6846,186.35,186.31,2.685]
[1736881366051,2.6847,186.34,186.31,2.685]
[1736881366353,5.56,186.37,186.31,2.685]
[1736881367153,2.6846,186.35,186.31,2.685]
[1736881367966,5.56,186.37,186.31,2.685]
[1736881368153,2.6847,186.34,186.31,2.685]
[1736881368457,8.9494,186.37,186.31,2.685]
[1736881368652,2.6846,186.35,186.31,2.685]
[1736881369082,12.45352119,186.35,186.27,101.04231583]
[1736881369253,12.45352119,186.32,186.27,101.04231583]
[1736881370754,15.13852119,186.32,186.29,2.6854]
[1736881371954,2.685,186.32,186.29,2.6854]
[1736881372251,2.6849,186.33,186.3,2.6853]
[1736881372457,2.6849,186.33,186.27,101.04231583]
[1736881373054,2.685,186.32,186.29,2.6853]
[1736881373351,12.45352119,186.35,186.27,101.04231583]
[1736881373553,15.13822119,186.35,186.31,2.685]
[1736881373851,15.13822119,186.35,186.27,101.04231583]
[1736881374254,15.13822119,186.35,186.32,2.685]
[1736881374658,2.6847,186.34,186.31,2.6851]
[1736881375052,12.45352119,186.35,186.27,101.04231583]
[1736881375251,12.45352119,186.35,186.28,2.6855]
[1736881375658,2.6851,186.32,186.27,101.04231583]
[1736881377259,2.6851,186.32,186.29,2.6854]
[1736881379368,2.6847,186.34,186.32,2.685]
[1736881379560,2.6847,186.34,186.27,101.04231583]
[1736881380462,2.685,186.32,186.29,2.6854]
[1736881380758,12.45352119,186.35,186.27,101.04231583]
[1736881382064,12.45352119,186.35,186.3,2.6852]
[1736881382065,2.6849,186.33,186.3,2.6852]
[1736881382264,12.45352119,186.35,186.27,101.04231583]
[1736881383558,2.6848,186.34,186.31,2.6851]
[1736881386769,12.45352119,186.35,186.31,2.6851]
[1736881386964,2.6849,186.33,186.31,2.6851]
[1736881387367,7.97264927,186.32,186.31,2.6851]
[1736881388368,2.6846,186.35,186.32,2.6848]
[1736881388585,7.97264927,186.37,186.3,7.97264927]
[1736881388783,7.97264927,186.39,186.32,7.97264927]
[1736881389000,13.51264927,186.39,186.32,7.97264927]
[1736881389184,13.51264927,186.39,186.37,2.6842]
[1736881389471,7.97264927,186.39,186.34,7.97264927]
[1736881389659,13.51264927,186.41,186.39,2.684]
[1736881389864,5.54,186.41,186.34,7.97264927]
[1736881390064,13.51264927,186.41,186.34,7.97264927]
[1736881390566,3.2274,186.47,186.38,7.97264927]
[1736881390764,7.97264927,186.44,186.38,7.97264927]
[1736881390961,7.97264927,186.44,186.36,7.97264927]
[1736881391161,7.97264927,186.4,186.34,7.97264927]
[1736881391357,5.56,186.45,186.31,1.6941]
[1736881391358,12.44756777,186.42,186.31,14.14166777]
[1736881391668,2.6839,186.4,186.34,2.6846]
[1736881391870,2.6839,186.4,186.31,14.14166777]
[1736881392263,2.6839,186.4,186.37,2.6842]
[1736881392861,2.6839,186.4,186.31,14.14166777]
[1736881393066,2.6842,186.38,186.31,14.14166777]
[1736881393567,2.6842,186.38,186.34,2.6846]
[1736881394067,2.6842,186.38,186.31,1.6941]
[1736881394269,2.6842,186.38,186.35,2.6845]
[1736881394468,2.684,186.4,186.31,1.6941]
[1736881394673,2.684,186.4,186.36,2.6843]
[1736881394981,12.44756777,186.42,186.31,14.14166777]
[1736881395267,12.44756777,186.44,186.4,2.6838]
[1736881395661,2.6835,186.43,186.34,12.44756777]
[1736881395962,2.6835,186.43,186.39,2.6838]
[1736881396273,2.6835,186.43,186.34,12.44756777]
[1736881396470,18.02756777,186.44,186.34,12.44756777]
[1736881396668,18.02756777,186.44,186.39,2.6838]
[1736881397076,2.6834,186.43,186.34,12.44756777]
[1736881397271,2.6834,186.43,186.4,2.6838]
[1736881398172,18.00756777,186.44,186.34,12.44756777]
[1736881398471,18.00756777,186.44,186.31,21.54585755]
[1736881398673,18.00756777,186.44,186.34,12.44756777]
[1736881398869,20.69086777,186.44,186.34,12.44756777]
[1736881399373,20.69086777,186.44,186.4,2.6837]
[1736881399569,20.69086777,186.44,186.34,12.44756777]
[1736881399873,20.69086777,186.44,186.4,2.6837]
[1736881402472,8.2433,186.44,186.34,12.44756777]
[1736881402869,2.6833,186.44,186.34,12.44756777]
[1736881403377,2.6833,186.44,186.41,2.6836]
[1736881403974,18.00756777,186.47,186.34,12.44756777]
[1736881404173,12.44756777,186.47,186.37,12.44756777]
[1736881404381,18.00756777,186.47,186.38,1.6866]
[1736881405079,5.56,186.47,186.38,1.6866]
[1736881405282,12.44756777,186.5,186.4,12.44756777]
[1736881405283,5.56,186.49,186.4,12.44756777]
[1736881405483,2.6827,186.48,186.4,12.44756777]
[1736881407286,2.6827,186.48,186.38,4.9279]
[1736881407287,2.6831,186.45,186.38,4.9279]
[1736881407476,12.44756777,186.47,186.38,1.6866]
[1736881407785,2.6831,186.45,186.42,2.6835]
[1736881408507,2.6831,186.45,186.41,2.6837]
[1736881408685,12.44756777,186.47,186.41,2.6837]
[1736881409188,2.6833,186.44,186.41,2.6837]
[1736881413189,2.6833,186.44,186.34,101.00634828]
[1736881413190,12.44756777,186.44,186.34,101.00634828]
[1736881413490,7.96646825,186.4,186.34,108.97281653]
[1736881414984,7.96646825,186.38,186.34,101.00634828]
[1736881415586,2.6839,186.4,186.34,101.00634828]
[1736881415786,2.684,186.39,186.34,101.00634828]
[1736881416289,2.684,186.39,186.37,2.6842]
[1736881416694,12.4492701,186.41,186.37,2.6842]
[1736881416880,2.6839,186.4,186.37,2.6842]
[1736881417786,12.4492701,186.38,186.29,6.83944814]
[1736881418388,15.1334701,186.38,186.35,2.6845]
[1736881419385,1.6906,186.4,186.29,19.28871824]
[1736881419592,12.4492701,186.41,186.29,19.28871824]
[1736881419793,5.54,186.42,186.32,12.4492701]
[1736881419989,5.54,186.42,186.33,1.6025]
[1736881420489,5.54,186.42,186.4,2.6838]
[1736881422091,8.2235,186.42,186.39,2.6839]
[1736881425290,2.6839,186.4,186.37,2.6842]
[1736881425497,12.4492701,186.39,186.29,48.90547738]
[1736881426700,12.4492701,186.39,186.29,19.28871824]
[1736881427205,2.6842,186.38,186.35,2.6845]
[1736881427700,12.4492701,186.39,186.29,6.83944814]
[1736881427897,12.4492701,186.36,186.28,1.7105]
[1736881428100,5.54,186.35,186.28,1.7105]
[1736881428403,2.6849,186.33,186.26,10.74358978]
[1736881428798,5.54,186.35,186.26,10.74358978]
[1736881429001,5.54,186.35,186.26,3.3394]
[1736881429397,5.54,186.35,186.32,2.6849]
[1736881430704,8.2246,186.35,186.32,2.6849]
[1736881431305,5.54,186.35,186.26,3.3394]
[1736881431506,2.6848,186.34,186.24,102.75972692]
[1736881432403,2.6848,186.34,186.3,2.6852]
[1736881433001,2.6848,186.34,186.24,102.75972692]
[1736881433202,2.6848,186.34,186.31,2.6851]
[1736881433401,2.6848,186.34,186.24,102.75972692]
[1736881434301,5.54,186.35,186.24,102.75972692]
[1736881434502,5.54,186.35,186.33,2.6847]
[1736881435507,8.2246,186.35,186.26,12.4492701]
[1736881435704,8.2246,186.35,186.32,2.685]
[1736881436801,5.54,186.35,186.26,12.4492701]
[1736881437103,12.4492701,186.34,186.24,102.75972692]
[1736881437503,12.4492701,186.34,186.32,2.6849]
[1736881438307,12.4492701,186.34,186.24,102.75972692]
[1736881438608,5.54,186.35,186.24,102.75972692]
[1736881438911,5.54,186.35,186.24,101.06192692]
[1736881439611,12.4492701,186.33,186.24,101.06192692]
[1736881440006,2.6851,186.32,186.29,2.6853]
[1736881440905,12.4492701,186.33,186.29,2.6853]
[1736881441208,12.4492701,186.33,186.27,2.6857]
[1736881441509,12.4492701,186.33,186.24,101.06192692]
[1736881441814,2.6852,186.31,186.28,2.6855]
[1736881443411,2.685,186.32,186.29,2.6854]
[1736881443803,5.54,186.35,186.24,101.06192692]
[1736881444010,2.6849,186.33,186.3,2.6852]
[1736881444212,5.54,186.35,186.24,101.06192692]
[1736881444412,12.4492701,186.33,186.24,101.06192692]
[1736881444615,2.6852,186.31,186.28,2.6855]
[1736881444816,12.4492701,186.33,186.24,101.06192692]
[1736881445013,12.4492701,186.3,186.24,101.06192692]
[1736881445215,2.6854,186.29,186.26,2.6857]
[1736881445814,12.4492701,186.3,186.24,101.06192692]
[1736881446017,12.4492701,186.33,186.24,101.06192692]
[1736881446619,2.6852,186.31,186.28,2.6854]
[1736881446818,2.6852,186.31,186.24,101.06192692]
[1736881447116,12.4492701,186.33,186.24,101.06192692]
[1736881447319,15.1341701,186.33,186.24,101.06192692]
[1736881447908,2.685,186.32,186.24,101.06192692]
[1736881448315,12.4492701,186.33,186.24,101.06192692]
[1736881449115,2.6853,186.3,186.26,2.6857]
[1736881449314,2.6853,186.3,186.24,101.06192692]
[1736881449816,2.6852,186.31,186.28,2.6855]
[1736881450316,2.6854,186.3,186.27,2.6857]
[1736881451312,2.6854,186.3,186.24,101.06192692]
[1736881451522,2.6854,186.3,186.28,2.6855]
[1736881451824,2.6852,186.31,186.28,2.6855]
[1736881452725,12.4492701,186.33,186.24,101.06192692]
[1736881452929,12.4492701,186.33,186.31,2.6851]
[1736881453224,12.4492701,186.33,186.24,101.06192692]
[1736881453527,7.97308764,186.32,186.27,2.6856]
[1736881453721,7.97308764,186.32,186.26,7.97308764]
[1736881454325,195.0,186.36,186.26,7.97308764]
[1736881454629,7.97308764,186.33,186.28,7.97308764]
[1736881454929,7.97308764,186.35,186.28,7.97308764]
[1736881455925,7.97308764,186.35,186.33,2.6847]
[1736881456417,10.65768764,186.35,186.33,2.6847]
[1736881458631,10.65768764,186.35,186.32,2.6849]
[1736881458826,10.65768764,186.35,186.28,7.97308764]
[1736881459250,10.65768764,186.35,186.3,2.6852]
[1736881459531,10.65768764,186.35,186.28,7.97308764]
[1736881460831,10.65768764,186.35,186.32,2.6848]
[1736881461639,7.97308764,186.35,186.32,2.6848]
[1736881461930,7.97308764,186.33,186.31,2.6851]
[1736881462133,7.97308764,186.33,186.28,7.97308764]
[1736881462336,7.97308764,186.33,186.32,2.685]
[1736881462731,10.65768764,186.35,186.32,2.685]
[1736881463029,16.19768764,186.35,186.28,7.97308764]
[1736881463234,16.19768764,186.35,186.33,2.6848]
[1736881463435,5.54,186.38,186.32,7.97308764]
[1736881463627,13.51308764,186.38,186.32,7.97308764]
[1736881463828,13.51308764,186.38,186.36,2.6843]
[1736881464426,5.54,186.38,186.36,2.6843]
[1736881465030,7.97308764,186.39,186.34,7.97308764]
[1736881465340,7.97308764,186.41,186.34,7.97308764]
[1736881465528,7.97308764,186.41,186.36,7.97308764]
[1736881466726,7.97308764,186.41,186.39,2.6838]
[1736881467634,7.97308764,186.41,186.4,2.6838]
[1736881468445,13.51308764,186.44,186.38,7.97308764]
[1736881468738,13.51308764,186.44,186.42,2.6834]
[1736881469333,2.6827,186.48,186.44,2.6831]
[1736881469539,7.97308764,186.47,186.44,2.6831]
[1736881470442,10.65598764,186.47,186.43,2.6833]
[1736881470664,2.6829,186.47,186.43,2.6833]
[1736881470945,7.97308764,186.44,186.33,5.3697]
[1736881471145,7.97308764,186.44,186.37,7.97308764]
[1736881471746,7.97308764,186.45,186.39,7.97308764]
[1736881472142,10.65598764,186.47,186.44,2.6831]
[1736881474246,7.97308764,186.45,186.44,2.6831]
[1736881474647,5.54,186.48,186.47,2.6828]
[1736881474946,7.97308764,186.49,186.47,2.6828]
[1736881475144,7.97308764,186.49,186.46,2.6829]
[1736881475447,7.97308764,186.49,186.43,7.97308764]
[1736881476549,7.97308764,186.49,186.46,2.6829]
[1736881477447,10.69074863,186.51,186.41,7.97308764]
[1736881477448,7.97308764,186.47,186.41,7.97308764]
[1736881477637,7.97308764,186.47,186.4,7.97308764]
[1736881478838,7.97308764,186.47,186.44,2.6831]
[1736881479041,7.97308764,186.45,186.39,7.97308764]
[1736881479543,7.97308764,186.45,186.44,2.6832]
[1736881479749,7.97308764,186.47,186.41,7.97308764]
[1736881480137,7.97308764,186.49,186.43,7.97308764]
[1736881481146,7.97308764,186.49,186.47,2.6827]
[1736881484954,7.97308764,186.49,186.48,2.6827]
[1736881485455,5.3609,186.64,186.52,2.6821]
[1736881485749,7.97308764,186.56,186.51,7.97308764]
[1736881486048,7.97308764,186.56,186.54,2.6817]
[1736881486248,7.97308764,186.56,186.49,7.97308764]
[1736881486449,10.65488764,186.54,186.43,5.3666]
[1736881486652,7.97308764,186.52,186.48,2.6826]
[1736881486850,7.97308764,186.52,186.46,7.97308764]
[1736881487455,4.9124,186.57,186.5,2.6824]
[1736881487456,2.682,186.53,186.5,2.6824]
[1736881487953,2.682,186.53,186.49,2.6825]
[1736881489458,15.11324713,186.55,186.51,2.6822]
[1736881490056,15.11324713,186.55,186.52,2.682]
[1736881491457,2.6818,186.54,186.52,2.682]
[1736881493454,15.11314713,186.55,186.52,2.682]
[1736881494669,2.6817,186.55,186.52,2.682]
[1736881495457,4.2431,186.57,186.49,12.43144713]
[1736881495755,12.43144713,186.58,186.49,12.43144713]
[1736881496358,2.6814,186.57,186.54,2.6817]
[1736881496755,5.52,186.59,186.49,12.43144713]
[1736881497062,12.43144713,186.62,186.49,12.43144713]
[1736881497263,17.95144713,186.62,186.49,12.43144713]
[1736881497462,2.6811,186.6,186.57,2.6813]
[1736881497662,2.6811,186.6,186.49,12.43144713]
[1736881498368,12.43144713,186.62,186.49,12.43144713]
[1736881498556,2.6809,186.61,186.49,12.43144713]
[1736881499464,13.36482628,186.64,186.52,12.43144713]
[1736881499657,16.20442628,186.64,186.55,12.43144713]
[1736881500663,10.68442628,186.64,186.55,12.43144713]
[1736881501196,10.68442628,186.64,186.62,2.6806]
[1736881502161,1.6445,186.67,186.56,1.604]
[1736881502368,2.6799,186.67,186.64,2.6803]
[1736881502864,2.6802,186.66,186.62,2.6806]
[1736881503668,2.6803,186.65,186.62,2.6806]
[1736881505355,19.63144713,186.68,186.62,2.6806]
[1736881505561,2.6801,186.66,186.58,12.43144713]
[1736881505766,2.6801,186.66,186.63,2.6805]
[1736881506254,2.6801,186.66,186.62,2.6805]
[1736881508265,2.6801,186.66,186.58,12.43144713]
[1736881508465,2.6801,186.66,186.63,2.6805]
[1736881508867,2.68,186.67,186.58,12.43144713]
[1736881509070,19.63144713,186.68,186.63,2.6804]
[1736881509371,7.94403919,186.66,186.6,7.94403919]
[1736881509562,7.94403919,186.66,186.65,2.6802]
[1736881509965,10.62413919,186.66,186.6,7.94403919]
[1736881510173,7.94403919,186.64,186.58,7.94403919]
[1736881510866,5.52,186.68,186.55,7.94403919]
[1736881511071,7.94403919,186.6,186.55,7.94403919]
[1736881511272,7.94403919,186.6,186.57,2.6813]
[1736881511869,7.94403919,186.6,186.58,2.6812]
[1736881514470,7.94403919,186.6,186.57,2.6813]
[1736881514669,7.94403919,186.58,186.52,7.94403919]
[1736881514872,7.94403919,186.58,186.46,12.76998978]
[1736881514873,7.94403919,186.55,186.5,14.77643594]
[1736881515073,7.94403919,186.55,186.52,2.6821]
[1736881515673,2.6816,186.56,186.52,2.6821]
[1736881515874,2.6816,186.56,186.53,2.6819]
[1736881516877,5.52,186.58,186.54,7.94403919]
[1736881517069,5.52,186.58,186.56,7.94403919]
[1736881517567,5.52,186.58,186.57,2.6814]
[1736881519564,1.7161,186.6,186.56,7.94403919]
[1736881519785,1.7161,186.6,186.58,2.6812]
[1736881520368,2.6809,186.61,186.58,2.6812]
[1736881521977,7.94403919,186.62,186.56,7.94403919]
[1736881522177,7.94403919,186.62,186.59,2.681]
[1736881522372,7.94403919,186.62,186.56,7.94403919]
[1736881522772,10.62483919,186.62,186.58,2.6812]
[1736881523078,7.94403919,186.6,186.5,1.5629]
[1736881523272,7.94403919,186.58,186.53,7.94403919]
[1736881523472,7.94403919,186.58,186.51,7.94403919]
[1736881523668,2.6811,186.59,186.56,2.6814]
[1736881523973,7.94403919,186.6,186.53,7.94403919]
[1736881524379,5.52,186.63,186.55,7.94403919]
[1736881524578,7.94403919,186.61,186.55,7.94403919]
[1736881527079,7.94403919,186.61,186.59,2.6811]
[1736881527471,2.6811,186.6,186.55,7.94403919]
[1736881527876,7.94403919,186.59,186.55,2.6816]
[1736881528204,7.94403919,186.57,186.51,7.94403919]
[1736881528380,7.94403919,186.55,186.5,2.6823]
[1736881528581,7.94403919,186.55,186.49,7.94403919]
[1736881528976,7.94403919,186.55,186.5,2.6823]
[1736881529783,7.94403919,186.53,186.49,7.94403919]
[1736881529978,7.94403919,186.51,186.45,7.94403919]
[1736881530376,10.62583919,186.54,186.47,7.94403919]
[1736881530575,5.52,186.56,186.49,7.94403919]
[1736881530780,13.46403919,186.56,186.49,7.94403919]
[1736881530981,10.62583919,186.54,186.49,7.94403919]
[1736881531179,7.94403919,186.54,186.49,7.94403919]
[1736881531384,7.94403919,186.54,186.42,100.96424696]
[1736881531579,2.682,186.53,186.49,2.6825]
[1736881531776,7.94403919,186.52,186.49,2.6825]
[1736881532877,7.94403919,186.5,186.44,7.94403919]
[1736881533583,10.62643919,186.5,186.47,2.6828]
[1736881533787,7.94403919,186.5,186.47,2.6828]
[1736881534285,7.94403919,186.5,186.44,7.94403919]
[1736881534595,7.94403919,186.52,186.49,2.6824]
[1736881535085,7.94403919,186.52,186.5,2.6823]
[1736881537385,2.682,186.53,186.5,2.6823]
[1736881539287,12.43068454,186.55,186.44,12.43068454]
[1736881539483,8.2016,186.56,186.44,12.43068454]
[1736881539684,8.2016,186.56,186.47,12.43068454]
[1736881539887,1.6116,186.58,186.47,12.43068454]
[1736881540087,7.1316,186.58,186.56,2.6815]
[1736881540286,1.6116,186.58,186.56,2.6815]
[1736881540487,8.2009,186.61,186.58,2.6811]
[1736881541691,5.52,186.61,186.53,12.43068454]
[1736881541884,5.52,186.61,186.59,2.681]
[1736881542084,5.52,186.61,186.53,12.43068454]
[1736881542291,5.52,186.61,186.58,2.6812]
[1736881543091,8.2009,186.61,186.57,2.6813]
[1736881543487,5.52,186.61,186.53,12.43068454]
[1736881543808,2.6811,186.6,186.56,2.6815]
[1736881543988,5.52,186.61,186.56,2.6815]
[1736881544493,8.2009,186.61,186.53,12.43068454]
[1736881544993,8.2009,186.61,186.57,2.6813]
[1736881545386,2.681,186.6,186.57,2.6813]
[1736881546585,2.6815,186.57,186.53,2.6819]
[1736881546789,2.6815,186.57,186.45,29.61675914]
[1736881546790,12.43068454,186.58,186.47,12.43068454]
[1736881547392,2.6814,186.57,186.54,2.6818]
[1736881548404,12.43068454,186.58,186.47,12.43068454]
[1736881548596,12.43068454,186.55,186.45,14.00898454]
[1736881548793,5.52,186.54,186.42,113.3949315]
[1736881549000,2.6826,186.49,186.45,2.6831]
[1736881549213,2.6826,186.49,186.42,113.3949315]
[1736881549388,12.43068454,186.52,186.42,113.3949315]
[1736881549794,2.6824,186.5,186.46,2.6828]
[1736881549995,12.43068454,186.52,186.42,100.96424696]
[1736881550594,2.6825,186.49,186.45,2.6831]
[1736881550794,12.43068454,186.52,186.45,2.6831]
[1736881551599,2.6827,186.49,186.45,2.6831]
[1736881552099,2.6827,186.48,186.44,2.6832]
[1736881552395,12.43068454,186.49,186.42,100.96424696]
[1736881552797,12.43068454,186.49,186.36,12.43068454]
[1736881553397,12.43068454,186.49,186.42,2.6835]
[1736881553398,2.6831,186.45,186.42,2.6835]
[1736881553693,5.52,186.46,186.42,2.6835]
[1736881554000,20.63378454,186.46,186.42,2.6835]
[1736881554201,17.95068454,186.46,186.33,15.71878454]
[1736881554394,1.5827,186.45,186.33,15.71878454]
[1736881554794,2.6833,186.44,186.33,15.71878454]
[1736881555095,1.5827,186.45,186.33,15.71878454]
[1736881555298,1.5827,186.45,186.38,2.684]
[1736881555299,2.6835,186.43,186.38,2.684]
[1736881555497,1.5827,186.45,186.36,12.43068454]
[1736881555901,2.6835,186.43,186.38,2.6841]
[1736881558100,2.6835,186.43,186.38,2.684]
[1736881559002,2.6837,186.41,186.37,2.6842]
[1736881559200,2.6837,186.41,186.33,14.11098454]
[1736881559423,3.1623,186.45,186.33,14.11098454]
[1736881559800,2.6833,186.44,186.33,14.11098454]
[1736881560301,2.6833,186.44,186.4,2.6838]
[1736881560996,2.6833,186.44,186.33,14.11098454]
[1736881561201,5.8454,186.45,186.41,2.6837]
[1736881561403,3.1623,186.45,186.36,12.43068454]
[1736881561592,5.52,186.46,186.39,2.684]
[1736881561797,5.52,186.46,186.36,12.43068454]
[1736881562001,15.74248454,186.52,186.39,12.43068454]
[1736881562193,5.52,186.49,186.39,12.43068454]
[1736881562602,2.6827,186.48,186.39,12.43068454]
[1736881563000,5.52,186.49,186.39,12.43068454]
[1736881563198,8.2026,186.49,186.39,12.43068454]
[1736881563593,2.6826,186.49,186.46,2.683]
[1736881563798,3.3118,186.52,186.42,12.43068454]
[1736881563995,5.58,186.54,186.45,12.43068454]
[1736881564605,12.43068454,186.56,186.45,12.43068454]
[1736881564905,2.6818,186.55,186.5,2.6823]
[1736881565101,2.6818,186.55,186.45,12.43068454]
[1736881566105,2.6818,186.54,186.5,2.6823]
[1736881567101,12.43068454,186.56,186.5,2.6823]
[1736881567308,2.6817,186.55,186.5,2.6823]
[1736881567507,12.43068454,186.56,186.49,2.6824]
[1736881567905,14.03628454,186.56,186.49,2.6824]
[1736881568899,2.6818,186.54,186.49,2.6824]
[1736881569309,2.6818,186.54,186.45,12.43068454]
[1736881569607,2.6817,186.55,186.45,12.43068454]
[1736881570012,2.6817,186.55,186.51,2.6822]
[1736881570211,2.6817,186.55,186.45,12.43068454]
[1736881571411,2.6817,186.55,186.51,2.6821]
[1736881571607,2.6817,186.55,186.45,12.43068454]
[1736881571829,8.2615,186.57,186.45,12.43068454]
[1736881572108,5.58,186.57,186.52,2.682]
[1736881572314,2.6815,186.56,186.52,2.682]
[1736881572809,2.6815,186.56,186.53,2.6819]
[1736881575813,2.6815,186.56,186.52,2.6821]
[1736881576211,2.6817,186.55,186.45,12.43068454]
[1736881576402,2.6817,186.55,186.5,2.6823]
[1736881576807,2.6817,186.55,186.45,12.43068454]
[1736881578212,2.6817,186.55,186.51,2.6821]
[1736881581311,10.63550914,186.55,186.51,2.6821]
[1736881582615,7.95380914,186.55,186.51,2.6821]
[1736881582816,2.6818,186.54,186.51,2.6821]
[1736881583515,10.63580914,186.53,186.5,2.6823]
[1736881584415,7.95380914,186.53,186.51,2.6822]
[1736881588925,2.6815,186.56,186.53,2.6818]
[1736881589118,2.6815,186.56,186.51,7.95380914]
[1736881589119,7.95380914,186.56,186.51,7.95380914]
[1736881589526,10.63540914,186.56,186.53,2.6819]